bitfinex-derivatives/quotes_ETHF0:USTF0_20250903
["timestamp","ask_amount","ask_price","bid_price","bid_amount"]
[1756867430530,0.7169,4342.7,4342.6,2.05913826]
[1756867430929,0.7169,4342.7,4342.6,0.4124]
[1756867432336,0.7169,4342.7,4342.6,0.2054]
[1756867432530,0.7169,4342.3,4342.2,1.85213826]
[1756867432730,0.7169,4342.3,4342.2,2.05913826]
[1756867435532,0.5104,4342.3,4342.2,2.05913826]
[1756867435724,0.5131,4342.6,4342.5,0.7297]
[1756867435925,0.1159,4344.5,4342.5,0.7297]
[1756867435926,4.2756,4343.5,4343.4,0.7297]
[1756867436531,4.0406,4343.5,4343.4,0.7297]
[1756867436837,4.2756,4343.5,4342.9,1.32943826]
[1756867437138,0.7169,4343.0,4342.9,2.05913826]
[1756867437341,0.5104,4343.0,4342.9,2.05913826]
[1756867438641,0.2038,4343.0,4342.9,2.05913826]
[1756867439033,3.5587,4343.5,4343.0,0.1271]
[1756867439233,3.734,4343.5,4343.4,0.2054]
[1756867439433,3.969,4343.5,4343.4,0.2054]
[1756867439727,4.2756,4343.5,4343.4,0.2054]
[1756867440344,0.2038,4343.5,4343.4,0.7297]
[1756867440644,0.5104,4343.9,4343.8,0.7297]
[1756867441033,0.7169,4343.9,4343.8,0.7297]
[1756867441433,0.7169,4343.9,4343.8,0.4124]
[1756867441632,0.7169,4343.9,4343.1,3.2078]
[1756867441840,0.7169,4343.2,4343.1,0.5227]
[1756867442044,0.3066,4343.2,4343.1,0.7297]
[1756867442240,0.3066,4343.4,4343.2,0.3173]
[1756867442440,0.5104,4343.4,4343.3,0.7297]
[1756867442641,0.7169,4343.4,4343.3,0.7297]
[1756867443836,0.7169,4343.4,4342.9,0.3173]
[1756867444032,0.7169,4343.4,4342.7,0.235]
[1756867444237,0.7169,4343.4,4342.9,0.3173]
[1756867444441,0.8328,4343.0,4342.9,0.5227]
[1756867444643,0.8328,4343.0,4342.9,0.2054]
[1756867444945,0.8328,4343.0,4342.9,0.7297]
[1756867445137,0.8328,4343.0,4342.9,0.4124]
[1756867446132,0.7169,4343.0,4342.9,0.7297]
[1756867448145,0.5104,4343.0,4342.9,0.7297]
[1756867450638,0.7169,4343.0,4342.9,0.7297]
[1756867457337,3.3237,4343.5,4343.4,0.7082]
[1756867457338,3.9633,4343.5,4343.4,0.7082]
[1756867457542,3.9633,4343.5,4343.4,0.4046]
[1756867457841,4.277,4343.5,4343.4,0.1953]
[1756867459252,4.277,4343.5,4343.1,0.3036]
[1756867459549,3.9633,4343.5,4343.4,0.1953]
[1756867460050,4.277,4343.5,4343.4,0.1953]
[1756867463348,4.277,4343.5,4343.1,0.3036]
[1756867464856,4.277,4343.5,4342.7,6.66443826]
[1756867465051,4.277,4343.5,4342.8,0.93845]
[1756867465052,0.5197,4342.9,4342.8,0.93845]
[1756867465352,0.206,4342.9,4342.8,0.93845]
[1756867465652,0.5487,4343.9,4343.4,0.4046]
[1756867465849,0.5197,4343.6,4343.5,0.7082]
[1756867466459,0.7183,4343.6,4343.5,0.7082]
[1756867468860,0.4046,4343.3,4343.2,0.1953]
[1756867469058,0.4046,4343.3,4343.2,0.7082]
[1756867469547,0.7183,4343.3,4343.2,0.7082]
[1756867469751,0.5197,4343.3,4343.2,0.7082]
[1756867470356,0.7183,4343.3,4343.2,0.7082]
[1756867470654,0.3137,4343.9,4343.3,0.3036]
[1756867470850,0.6396,4344.4,4344.3,0.1953]
[1756867471051,0.9533,4344.4,4344.3,0.1953]
[1756867471352,0.7183,4344.3,4344.2,0.1953]
[1756867472756,0.7183,4344.3,4344.2,0.7082]
[1756867473055,3.7275,4345.1,4345.0,0.4046]
[1756867473361,0.235,4345.7,4345.0,1.61506068]
[1756867473551,0.7183,4345.5,4345.4,1.08886068]
[1756867473750,0.7183,4345.5,4345.4,1.49346068]
[1756867474156,0.5197,4345.5,4345.4,1.79706068]
[1756867474351,3.6124,4346.3,4346.2,0.4046]
[1756867474549,0.3137,4346.5,4346.2,1.49346068]
[1756867474854,0.5197,4346.5,4346.4,0.7082]
[1756867475952,0.3137,4346.4,4345.9,0.5386]
[1756867476153,0.5266,4346.0,4345.9,0.7339]
[1756867476348,0.8403,4346.0,4345.9,0.9432]
[1756867477255,0.7183,4346.0,4345.9,0.9432]
[1756867477656,0.122,4346.5,4346.4,0.1953]
[1756867477862,0.8403,4346.5,4346.4,0.7082]
[1756867478267,0.7183,4346.5,4346.4,0.7082]
[1756867478966,0.4046,4346.1,4346.0,0.4989]
[1756867479261,0.7183,4346.1,4346.0,0.7082]
[1756867479461,0.122,4346.5,4345.7,0.4046]
[1756867479462,0.7183,4345.8,4345.7,0.4046]
[1756867479653,0.3137,4346.4,4345.7,3.6124]
[1756867479850,0.5197,4346.4,4346.3,0.1953]
[1756867480163,0.7183,4346.4,4346.3,0.1953]
[1756867480360,0.7183,4346.4,4345.8,0.3036]
[1756867480863,0.7183,4346.4,4346.3,0.1953]
[1756867481364,0.7183,4346.4,4345.8,0.3036]
[1756867482667,0.7183,4346.4,4346.3,0.2045]
[1756867483060,0.7183,4346.4,4346.3,0.7083]
[1756867483266,0.5016,4346.9,4346.8,0.4061]
[1756867483458,0.7034,4346.9,4346.8,0.7083]
[1756867483859,0.7034,4346.9,4346.8,0.4061]
[1756867484862,0.7034,4346.9,4346.5,0.3022]
[1756867484863,0.6154,4347.0,4346.9,0.7083]
[1756867485067,0.8254,4347.0,4346.9,0.2045]
[1756867485270,0.5338,4347.0,4346.5,0.1177]
[1756867485461,0.5016,4346.7,4346.6,0.7083]
[1756867485654,0.7034,4346.7,4346.6,0.7083]
[1756867486161,0.1155,4346.5,4346.3,3.2078]
[1756867486355,0.1155,4346.5,4346.4,0.2045]
[1756867486356,0.8189,4346.5,4346.4,0.2045]
[1756867486862,0.7034,4346.5,4346.4,0.7083]
[1756867488269,0.8189,4346.5,4346.4,0.2045]
[1756867488665,0.8189,4346.5,4346.1,41.035]
[1756867488865,0.2916,4346.4,4346.1,41.035]
[1756867489061,0.7034,4346.2,4346.1,41.035]
[1756867489667,0.7034,4346.2,4346.1,40.8]
[1756867490061,0.7034,4346.2,4345.6,0.3022]
[1756867490270,0.7034,4346.2,4345.7,0.235]
[1756867490471,0.1155,4346.5,4345.6,0.3022]
[1756867490472,0.4118,4345.8,4345.6,0.3022]
[1756867490667,0.1155,4346.0,4345.3,3.51]
[1756867490877,0.7034,4345.4,4345.3,3.2078]
[1756867491069,0.7034,4345.4,4345.3,0.2045]
[1756867491372,0.7034,4345.4,4345.3,0.7083]
[1756867493265,0.21,4345.4,4345.3,0.7083]
[1756867493464,0.21,4345.5,4345.4,0.3022]
[1756867493762,0.8189,4345.5,4345.4,0.4061]
[1756867494266,0.8189,4345.5,4345.2,0.3022]
[1756867494476,0.4934,4344.9,4344.8,0.4395]
[1756867494666,0.7034,4344.9,4344.8,0.7083]
[1756867494875,0.7034,4344.9,4344.6,3.4428]
[1756867495073,0.2916,4344.8,4344.6,3.745]
[1756867495368,0.7034,4344.7,4344.6,4.1511]
[1756867495575,0.21,4344.8,4344.7,0.3022]
[1756867495776,0.5016,4344.8,4344.7,0.7083]
[1756867495975,0.7034,4344.8,4344.7,0.7083]
[1756867496764,0.7034,4344.8,4344.6,0.235]
[1756867497280,0.4118,4344.3,4344.2,0.235]
[1756867497576,0.4118,4344.3,4344.2,0.2045]
[1756867498178,0.7034,4344.3,4344.2,0.2045]
[1756867498378,0.7034,4344.3,4344.2,0.7083]
[1756867499382,0.2916,4344.9,4344.2,0.4061]
[1756867499582,0.7034,4344.9,4344.8,0.4061]
[1756867501282,0.21,4345.5,4345.4,0.7083]
[1756867501478,0.2916,4345.7,4345.5,0.3022]
[1756867501677,0.5016,4345.7,4345.6,0.7083]
[1756867501878,0.7034,4344.6,4344.5,3.2078]
[1756867502089,0.7034,4344.6,4344.5,3.9161]
[1756867506001,0.7034,4344.6,4344.5,3.6139]
[1756867506386,0.1155,4344.5,4343.7,3.2078]
[1756867506585,0.5016,4343.8,4343.7,3.9161]
[1756867506889,0.2916,4344.2,4343.7,4.1511]
[1756867507084,1.08754091,4344.4,4343.7,3.8489]
[1756867507290,0.21,4343.9,4343.8,1.79584091]
[1756867507793,0.4118,4344.4,4344.3,0.4061]
[1756867508088,3.3233,4346.0,4345.3,0.3022]
[1756867508288,3.3233,4346.0,4345.0,0.1177]
[1756867508289,3.2078,4346.0,4345.9,0.7083]
[1756867508486,0.2916,4346.8,4346.1,0.3022]
[1756867508686,0.7034,4346.8,4346.7,0.2045]
[1756867508889,0.7034,4346.8,4346.7,0.7083]
[1756867509192,0.7034,4346.8,4346.7,0.4061]
[1756867509591,0.7034,4346.8,4346.7,0.7083]
[1756867509896,0.7034,4346.8,4346.7,0.4061]
[1756867510491,0.7034,4346.8,4346.7,0.2045]
[1756867510691,0.7034,4346.8,4346.2,0.235]
[1756867513088,0.8386,4346.0,4345.9,3.4134]
[1756867513492,0.8386,4346.0,4345.9,3.9043]
[1756867513493,0.1988,4346.0,4345.9,3.9043]
[1756867513689,0.235,4346.7,4346.2,0.4018]
[1756867513893,0.4338,4346.7,4346.6,0.2056]
[1756867514094,0.4338,4346.7,4346.6,0.4018]
[1756867514292,3.2078,4346.9,4346.6,0.6965]
[1756867514588,3.2078,4346.9,4346.0,0.1226]
[1756867514589,3.7244,4346.9,4346.8,0.6965]
[1756867514794,0.714,4346.9,4346.8,0.6965]
[1756867514998,0.714,4346.9,4346.3,0.2947]
[1756867515595,0.714,4346.9,4346.8,0.2056]
[1756867515798,0.949,4346.9,4346.8,0.2056]
[1756867516096,0.949,4346.9,4346.3,0.2947]
[1756867518897,0.714,4346.9,4346.8,0.6965]
[1756867519088,0.3178,4346.9,4346.5,0.1226]
[1756867519294,0.3178,4346.9,4346.3,0.5003]
[1756867519495,0.5166,4346.4,4346.3,0.6965]
[1756867519700,0.5166,4346.4,4346.3,0.98102793]
[1756867519894,0.3962,4346.9,4346.8,0.4018]
[1756867520201,0.714,4346.9,4346.8,0.2056]
[1756867520901,0.714,4346.9,4346.4,0.2947]
[1756867521101,0.8386,4346.5,4346.4,0.5003]
[1756867521697,0.5208,4346.5,4345.9,3.7375]
[1756867521903,0.3962,4346.1,4346.0,0.6863251]
[1756867522104,0.3178,4346.4,4346.1,0.2947]
[1756867522303,0.3178,4346.8,4346.7,0.1962]
[1756867522596,0.5166,4346.8,4346.7,0.4018]
[1756867522803,0.714,4346.8,4346.7,0.6965]
[1756867522999,0.714,4346.8,4346.7,0.4018]
[1756867523202,0.949,4346.8,4346.7,0.2056]
[1756867523403,0.1246,4346.5,4346.0,0.1226]
[1756867523605,0.1988,4346.1,4346.0,0.5244]
[1756867523904,0.3178,4346.5,4346.0,0.80881973]
[1756867524100,0.949,4346.7,4346.6,0.6965]
[1756867524306,0.7516,4346.7,4346.6,0.6965]
[1756867524497,0.5166,4346.7,4346.6,0.6965]
[1756867524700,3.4428,4346.9,4346.6,0.6965]
[1756867524901,3.7606,4346.9,4346.7,0.2947]
[1756867525202,0.5166,4346.8,4346.7,0.6965]
[1756867525510,0.8386,4348.0,4347.9,0.2056]
[1756867525696,0.8386,4348.0,4347.9,0.4018]
[1756867527208,0.5152,4348.1,4348.0,0.6965]
[1756867527407,0.714,4348.1,4348.0,0.4018]
[1756867527803,0.3962,4347.8,4347.7,0.5003]
[1756867528011,0.714,4347.8,4347.7,0.5003]
[1756867528203,0.1246,4348.0,4347.7,0.6965]
[1756867528501,0.5166,4347.9,4347.8,0.6965]
[1756867528704,0.1246,4347.5,4347.4,41.035]
[1756867528900,0.4424,4347.5,4347.4,41.035]
[1756867529103,0.3962,4347.3,4347.2,3.4134]
[1756867529411,0.5166,4347.3,4347.2,3.9043]
[1756867529610,0.714,4347.3,4347.2,3.9043]
[1756867529809,0.5166,4347.3,4347.2,3.9043]
[1756867530111,0.714,4347.3,4347.2,3.6096]
[1756867530402,0.5166,4347.9,4347.8,0.4018]
[1756867530605,0.5166,4347.9,4347.8,0.6965]
[1756867530799,0.714,4347.9,4347.3,0.2947]
[1756867531003,0.714,4347.3,4347.2,3.4134]
[1756867531304,0.714,4347.3,4346.9,0.2947]
[1756867531606,0.5208,4346.5,4346.4,3.9043]
[1756867531813,0.3178,4346.4,4345.9,3.5025]
[1756867532116,0.5166,4346.0,4345.9,3.9043]
[1756867532305,0.1246,4346.5,4346.0,0.2947]
[1756867532611,0.4338,4346.5,4346.4,0.6965]
[1756867532909,0.7516,4346.5,4346.4,0.6965]
[1756867533107,3.2078,4346.6,4346.4,0.4018]
[1756867533408,3.604,4346.6,4346.5,0.5003]
[1756867533709,0.1246,4347.0,4346.6,0.2947]
[1756867533909,0.8386,4347.0,4346.9,0.6965]
[1756867534104,0.8386,4347.0,4346.5,0.2947]
[1756867534306,0.8386,4347.0,4346.9,0.6965]
[1756867534307,1.0736,4347.0,4346.9,0.6965]
[1756867534504,1.0736,4347.0,4346.4,0.2947]
[1756867534806,1.0736,4347.0,4346.9,0.4018]
[1756867534807,0.4424,4347.0,4346.9,0.4018]
[1756867535005,1.0736,4347.0,4346.9,0.4018]
[1756867535200,0.7516,4347.0,4346.9,0.6965]
[1756867536413,3.2078,4347.2,4346.9,0.6965]
[1756867536609,3.2078,4347.2,4346.9,0.4018]
[1756867536818,3.4066,4347.2,4347.1,0.6965]
[1756867537616,3.604,4347.2,4347.1,0.6965]
[1756867537911,0.5166,4346.3,4346.2,0.6965]
[1756867538115,0.714,4346.3,4346.2,0.68698892]
[1756867538415,0.8386,4348.5,4348.4,0.6965]
[1756867538709,4.0464,4348.5,4347.6,44.0078]
[1756867538912,0.714,4347.8,4347.7,0.28507007]
[1756867539310,0.714,4347.8,4347.7,0.49067007]
[1756867539510,0.714,4347.8,4347.7,0.98157007]
[1756867540810,0.714,4347.8,4347.2,0.2947]
[1756867541012,3.2078,4347.9,4347.0,3.3304]
[1756867541013,2.672,4347.9,4347.7,0.4018]
[1756867541214,1.77359647,4350.0,4347.8,6.93359105]
[1756867541215,0.3178,4349.7,4347.8,6.93359105]
[1756867541411,0.1246,4350.0,4349.5,3.2078]
[1756867541715,0.1246,4350.0,4349.6,0.28479105]
[1756867541920,0.2954,4349.9,4349.7,0.28479105]
[1756867542114,0.2954,4349.9,4349.8,0.28479105]
[1756867542315,0.1246,4350.0,4349.8,0.28479105]
[1756867542513,0.2954,4350.3,4349.8,0.22989]
[1756867542714,3.5032,4350.8,4350.0,3.2078]
[1756867542922,3.2078,4350.8,4350.1,0.52190622]
[1756867543224,0.2954,4350.4,4350.1,0.238]
[1756867543612,0.2954,4350.4,4350.3,0.1]
[1756867546316,0.704,4350.4,4350.3,0.1]
[1756867552719,0.4961,4350.4,4350.3,0.1]
[1756867552916,0.2954,4350.4,4350.3,0.1]
[1756867553130,0.1254,4350.5,4350.3,4.32987]
[1756867553319,0.2954,4350.9,4350.3,4.1]
[1756867553519,0.2954,4350.8,4350.7,3.2078]
[1756867553719,0.2954,4350.8,4350.7,3.4458]
[1756867553927,0.4961,4350.8,4350.7,3.4458]
[1756867554122,0.2954,4350.8,4350.7,7.5458]
[1756867554716,0.4961,4350.8,4350.7,3.5458]
[1756867554922,0.704,4350.8,4350.7,3.3078]
[1756867555130,0.704,4350.8,4350.7,3.5458]
[1756867555824,0.4961,4350.8,4350.7,3.5458]
[1756867556024,0.704,4350.8,4350.7,3.5458]
[1756867556530,0.42,4351.0,4350.7,3.5458]
[1756867557434,0.3253,4351.5,4350.7,7.93799546]
[1756867557623,0.2007,4351.4,4350.9,0.1]
[1756867557823,0.3253,4351.5,4351.4,0.1]
[1756867558032,0.3253,4351.5,4351.3,0.1]
[1756867558238,0.2079,4351.4,4351.0,0.237]
[1756867558531,0.2954,4351.2,4351.0,0.237]
[1756867558824,0.1246,4351.5,4351.0,0.237]
[1756867558825,0.704,4351.1,4351.0,0.237]
[1756867559222,0.704,4351.1,4351.0,0.337]
[1756867559631,0.704,4351.1,4351.0,0.1]
[1756867559934,0.704,4350.9,4350.8,0.237]
[1756867562034,0.2954,4350.4,4350.3,40.8]
[1756867562225,0.2954,4350.4,4350.3,41.037]
[1756867562534,0.704,4350.4,4350.3,0.3966]
[1756867563421,0.1254,4351.0,4350.3,4.5562]
[1756867563626,0.4208,4351.0,4350.9,0.3192]
[1756867563827,0.4208,4351.0,4350.9,0.5562]
[1756867564432,0.8294,4351.0,4350.9,0.5562]
[1756867564627,0.2954,4350.9,4350.7,3.2078]
[1756867564827,0.704,4350.8,4350.7,3.4448]
[1756867565228,0.704,4350.8,4350.7,3.6044]
[1756867565430,0.704,4350.8,4350.7,3.4448]
[1756867565736,0.1254,4350.5,4350.1,3.2078]
[1756867565936,0.1254,4350.5,4350.1,3.6044]
[1756867565937,0.704,4350.2,4350.1,3.6044]
[1756867566124,0.704,4350.2,4350.1,4.05785968]
[1756867566330,0.4961,4350.2,4350.1,4.05785968]
[1756867566636,0.704,4350.2,4350.1,4.05785968]
[1756867566835,0.704,4350.2,4350.1,3.4448]
[1756867568025,0.704,4350.2,4350.1,3.6043]
[1756867568822,0.704,4350.2,4350.1,3.7638]
[1756867569231,0.4208,4350.5,4350.1,3.8635]
[1756867569436,0.4961,4350.2,4350.1,3.7638]
[1756867569624,0.2954,4350.2,4350.1,3.7638]
[1756867569827,0.4208,4350.5,4350.4,0.319]
[1756867570026,0.4208,4350.5,4350.4,0.556]
[1756867570636,0.6215,4350.5,4350.4,0.556]
[1756867571628,0.8294,4350.5,4350.4,0.3965]
[1756867571838,0.8294,4350.5,4350.4,0.5571]
[1756867573127,0.6215,4350.5,4350.4,0.5571]
[1756867573324,0.4302,4351.0,4350.5,0.1004]
[1756867573529,0.4302,4351.0,4350.9,0.4216]
[1756867573728,0.4302,4351.0,4350.9,0.5582]
[1756867573936,0.6228,4351.0,4350.9,0.5582]
[1756867574437,0.4302,4351.0,4350.9,0.5582]
[1756867574841,0.3048,4350.9,4350.7,7.59999546]
[1756867575042,0.4974,4350.9,4350.8,0.5582]
[1756867575527,0.4974,4350.9,4350.8,41.3582]
[1756867576636,0.3048,4350.9,4350.8,41.3582]
[1756867576934,0.3048,4350.9,4350.8,41.037]
[1756867577633,0.3048,4350.9,4350.8,41.1374]
[1756867578028,0.1254,4351.0,4350.9,0.4216]
[1756867578237,0.1246,4351.5,4350.9,0.3212]
[1756867578436,0.5249,4351.5,4351.4,0.1606]
[1756867578939,0.8297,4351.5,4351.4,0.1606]
[1756867579730,0.4294,4351.5,4351.4,0.3212]
[1756867579932,0.6172,4352.5,4352.4,0.3212]
[1756867581737,0.8249,4352.5,4352.4,0.3212]
[1756867583041,0.8249,4352.5,4352.4,0.1606]
[1756867583241,0.3048,4352.4,4352.1,40.8]
[1756867583443,0.7051,4352.2,4352.1,40.8]
[1756867583647,0.4974,4352.2,4352.1,41.037]
[1756867583841,0.3048,4352.2,4352.1,41.037]
[1756867584535,0.3048,4352.2,4352.1,41.1374]
[1756867585143,0.3048,4352.2,4352.1,41.037]
[1756867585442,0.3048,4352.2,4352.1,44.93940367]
[1756867585834,0.3048,4352.2,4352.1,45.03980367]
[1756867586033,0.3048,4352.2,4352.1,44.93940367]
[1756867586844,0.3048,4352.2,4352.1,45.03980367]
[1756867587043,0.3048,4352.2,4352.1,44.93940367]
[1756867587441,0.3048,4352.2,4352.1,40.8]
[1756867587637,0.3048,4352.2,4352.1,41.037]
[1756867587838,0.3048,4352.2,4352.1,40.8]
[1756867588146,0.3048,4352.2,4352.1,41.037]
[1756867588345,0.7051,4352.2,4352.1,0.237]
[1756867588542,4.7051,4352.2,4351.9,3.2078]
[1756867588739,0.3048,4351.4,4351.3,3.2078]
[1756867588940,0.7051,4351.4,4351.3,3.2078]
[1756867589140,0.7051,4351.4,4351.3,0.237]
[1756867589547,0.7051,4351.4,4351.3,0.3976]
[1756867589743,0.7051,4351.4,4351.3,0.1606]
[1756867589948,0.7051,4351.4,4351.3,0.3976]
[1756867590547,0.7051,4351.4,4351.3,0.237]
[1756867590946,0.7051,4351.4,4351.3,0.3976]
[1756867591149,0.4974,4351.4,4351.3,3.6054]
[1756867591351,0.4974,4351.4,4351.3,3.766]
[1756867591951,0.7051,4351.4,4351.3,3.2078]
[1756867592248,0.7051,4351.4,4351.3,3.6054]
[1756867592649,0.7051,4351.4,4351.3,3.766]
[1756867593949,0.7051,4351.4,4351.3,3.4448]
[1756867594250,0.7051,4351.4,4351.3,3.6054]
[1756867594451,0.7051,4351.4,4351.3,3.766]
[1756867594956,0.7051,4351.4,4351.3,3.765]
[1756867596050,0.7051,4351.4,4351.3,3.6044]
[1756867596349,0.7051,4351.4,4351.3,3.765]
[1756867596548,0.3048,4351.9,4351.8,0.3212]
[1756867596748,0.4974,4351.9,4351.8,3.765]
[1756867596949,0.7051,4351.9,4351.8,3.3684]
[1756867597149,0.7051,4351.9,4351.8,3.4438]
[1756867597749,0.7051,4351.9,4351.8,3.6044]
[1756867598852,0.7051,4351.9,4351.8,3.4438]
[1756867599055,0.1926,4351.2,4351.1,4.22360367]
[1756867599260,0.3048,4351.2,4351.1,4.56000367]
[1756867599457,0.1198,4351.5,4351.2,0.1004]
[1756867599756,0.3048,4351.8,4351.7,0.3212]
[1756867599948,0.3048,4351.8,4351.7,0.5572]
[1756867600559,0.3048,4351.9,4351.7,0.5572]
[1756867600857,0.3048,4351.9,4351.8,0.4216]
[1756867601356,0.4083,4352.5,4351.9,0.0994]
[1756867601561,0.6124,4352.5,4352.4,1.40208034]
[1756867601755,0.4083,4352.5,4352.4,1.50148034]
[1756867601960,0.6124,4352.5,4352.4,1.40208034]
[1756867602560,0.4083,4352.5,4352.4,1.40208034]
[1756867602762,0.6124,4352.5,4352.4,1.40208034]
[1756867603655,0.8227,4352.5,4352.3,0.236]
[1756867604254,0.8227,4352.5,4352.4,40.959]
[1756867604861,0.8227,4352.5,4352.4,0.159]
[1756867605555,0.8227,4352.5,4352.4,0.318]
[1756867605762,0.6124,4352.5,4352.4,0.318]
[1756867606165,0.8227,4352.5,4352.4,0.318]
[1756867607857,0.2885,4352.4,4352.3,41.036]
[1756867608059,0.7029,4351.9,4351.8,1.24308034]
[1756867608255,0.7029,4351.9,4351.8,1.40208034]
[1756867608456,0.7029,4351.9,4351.8,42.43808034]
[1756867608865,0.7029,4351.9,4351.8,42.27908034]
[1756867609364,0.7029,4351.9,4351.8,42.12008034]
[1756867610062,0.7029,4351.9,4351.8,41.88408034]
[1756867610258,0.7029,4351.9,4351.8,41.036]
[1756867610960,0.7029,4351.9,4351.8,0.395]
[1756867611161,0.2885,4351.9,4351.8,0.554]
[1756867611349,0.4926,4351.9,4351.8,1.63808034]
[1756867611551,0.7029,4351.9,4351.8,1.63808034]
[1756867611856,0.2885,4352.4,4351.8,1.63808034]
[1756867612058,0.4926,4352.4,4352.3,1.40208034]
[1756867612257,0.7029,4352.4,4352.3,1.40208034]
[1756867612758,0.7029,4352.4,4352.3,0.318]
[1756867612964,0.7029,4352.4,4352.3,0.159]
[1756867613157,0.2885,4352.3,4352.1,41.036]
[1756867613358,0.7029,4352.2,4352.1,40.8]
[1756867613557,0.7029,4352.2,4352.1,41.036]
[1756867613958,0.7029,4352.2,4352.1,0.554]
[1756867615163,0.7029,4352.2,4352.1,0.395]
[1756867616467,0.4144,4351.9,4351.8,41.88408034]
[1756867616669,0.7029,4351.9,4351.8,42.12008034]
[1756867616963,0.7029,4351.9,4351.8,41.88408034]
[1756867617168,0.7029,4351.9,4351.8,42.12008034]
[1756867618367,0.4926,4351.9,4351.8,42.12008034]
[1756867618869,0.4926,4351.9,4351.8,41.036]
[1756867619467,0.4926,4351.9,4351.8,40.8]
[1756867619766,0.4926,4351.9,4351.8,41.036]
[1756867620067,0.7029,4351.9,4351.8,0.236]
[1756867620267,0.2885,4351.8,4351.7,3.3668]
[1756867620569,0.7029,4351.8,4351.2,4.29188034]
[1756867620867,0.7029,4351.3,4351.2,3.5258]
[1756867621262,0.4926,4351.3,4351.2,3.7618]
[1756867622466,0.7029,4351.3,4351.2,3.6028]
[1756867622766,0.5417,4350.5,4350.4,0.159]
[1756867623070,0.5417,4350.5,4350.4,1.40208034]
[1756867623273,0.8302,4350.5,4350.4,1.40208034]
[1756867623462,0.4158,4351.0,4350.4,8.29188034]
[1756867623667,0.1273,4352.5,4351.4,0.318]
[1756867623668,0.6199,4351.5,4351.4,0.318]
[1756867623858,3.2078,4351.9,4351.4,1.50148034]
[1756867624058,3.4119,4351.9,4351.8,0.159]
[1756867624266,3.7004,4351.9,4351.8,0.318]
[1756867624465,3.4963,4351.9,4351.8,0.318]
[1756867624665,3.4963,4351.9,4351.8,0.4174]
[1756867625167,0.2885,4352.4,4351.8,0.554]
[1756867625370,0.2885,4352.4,4352.3,1.50148034]
[1756867625563,0.2885,4352.4,4352.3,1.73748034]
[1756867625763,0.2885,4352.4,4352.3,42.53748034]
[1756867625964,0.2885,4352.4,4352.3,42.43808034]
[1756867626261,0.7029,4352.4,4352.3,0.395]
[1756867626965,0.7029,4352.4,4352.3,0.236]
[1756867627470,0.5417,4352.0,4351.9,0.395]
[1756867627668,0.5417,4352.0,4351.7,0.236]
[1756867627669,0.4144,4351.8,4351.7,0.236]
[1756867627966,0.7029,4351.7,4351.6,3.2078]
[1756867628270,0.2885,4351.7,4351.6,3.8612]
[1756867628464,0.1273,4352.0,4351.7,0.0994]
[1756867628669,0.6199,4352.0,4351.9,0.318]
[1756867629065,0.8302,4352.0,4351.9,0.318]
[1756867629372,0.1273,4352.0,4351.6,3.4438]
[1756867629576,0.7029,4351.7,4351.6,3.6028]
[1756867630166,0.7029,4351.7,4351.6,3.2078]
[1756867630368,0.7029,4351.7,4351.6,3.6028]
[1756867631272,0.7029,4351.7,4351.6,0.395]
[1756867632464,0.7029,4351.7,4351.2,1.08408034]
[1756867632669,0.7139,4351.2,4351.1,3.3665]
[1756867632975,0.7139,4351.2,4351.1,3.6025]
[1756867633175,0.7139,4351.2,4351.1,0.3947]
[1756867633476,0.123,4351.5,4350.6,40.8]
[1756867633477,0.3023,4350.8,4350.7,0.1587]
[1756867633673,0.7139,4350.8,4350.7,0.3947]
[1756867633869,0.7139,4350.8,4350.7,0.236]
[1756867634375,0.7139,4350.8,4350.7,0.5534]
[1756867635565,0.7139,4350.8,4350.7,0.236]
[1756867636471,0.3023,4350.7,4350.5,42.12008034]
[1756867636672,0.7139,4350.6,4350.5,41.88408034]
[1756867636874,0.7139,4350.6,4350.5,1.47878034]
[1756867638468,0.3023,4350.9,4350.8,0.3174]
[1756867638672,0.123,4351.5,4350.9,0.0992]
[1756867638881,0.8369,4351.5,4351.4,0.1587]
[1756867639181,0.6344,4351.0,4350.9,0.5534]
[1756867639982,0.6344,4351.0,4350.9,1.63748034]
[1756867640482,0.4253,4351.0,4350.9,1.63748034]
[1756867640979,0.6344,4351.0,4350.9,1.63748034]
[1756867641579,0.8369,4351.0,4350.9,1.63748034]
[1756867642281,0.6344,4351.0,4350.9,4.84528034]
[1756867643083,0.8369,4351.0,4350.9,4.84528034]
[1756867643285,0.8369,4351.0,4350.9,3.3665]
[1756867643585,0.8369,4351.0,4350.9,3.5252]
[1756867644082,0.8369,4351.0,4350.9,3.3665]
[1756867644282,0.8369,4351.0,4350.9,3.6025]
[1756867644471,0.3023,4350.9,4350.6,5.335]
[1756867644671,0.7139,4350.8,4350.7,0.3947]
[1756867644977,0.5114,4350.8,4350.7,0.5534]
[1756867645984,0.3023,4350.8,4350.7,0.6526]
[1756867646283,0.5114,4350.8,4350.7,0.5534]
[1756867646583,0.7139,4350.8,4350.7,0.3947]
[1756867647677,0.7139,4350.8,4350.4,44.0078]
[1756867647678,0.123,4350.5,4350.4,3.2078]
[1756867647878,0.5346,4350.5,4350.4,3.4438]